fUSD/lending_fUSD_20240211
["ID","MTS","AMOUNT","RATE_DAILY","PERIOD"]
[313726439,1707619842521,-2095.45550453,0.000318,3]
[313726440,1707619842732,-7346.20435061,0.000318,3]
[313726441,1707619842747,-31165.60850922,0.000318,3]
[313726442,1707619842789,-4927.89073133,0.000318,3]
[313726443,1707619842843,-960.94494096,0.000318,3]
[313726477,1707619845481,-222.6732142,0.000222,2]
[313726478,1707619845490,-154.34,0.0003,2]
[313726479,1707619845499,-10045.64603223,0.00031706,7]
[313726480,1707619845535,-74964.51657893,0.00031706,7]
[313726481,1707619845546,-393.9487102,0.00031706,7]
[313726482,1707619845558,-114595.88867864,0.00031706,7]
[313726483,1707619845567,-33643.65090597,0.00031799,4]
[313726484,1707619845576,-96584.16428546,0.000318,3]
[313726485,1707619845585,-151.47,0.00031803,2]
[313726486,1707619845595,-150.0,0.00031867,2]
[313726487,1707619845604,-13156.97034701,0.00032,4]
[313726488,1707619845612,-9000.0,0.00032,3]
[313726489,1707619845623,-1258.84,0.00032067,2]
[313726490,1707619845632,-155.0,0.0003217,2]
[313726491,1707619845649,-151.0,0.00032249,120]
[313726492,1707619845871,-5946.10896579,0.00032255,4]
[313726494,1707619845923,-453.0,0.00032277,2]
[313726495,1707619845932,-8154.0,0.00032277,2]
[313726496,1707619845942,-212.212,0.00032277,2]
[313726497,1707619845951,-150.0,0.00032277,2]
[313726498,1707619845961,-947.152,0.00032277,2]
[313726499,1707619845970,-150.0,0.00032444,2]
[313726500,1707619845979,-2721.517693,0.0003266,2]
[313726501,1707619845988,-208.0,0.00032724,8]
[313726502,1707619846001,-276.0211,0.00032798,6]
[313726503,1707619846011,-154.34,0.000329,2]
[313726504,1707619846020,-154.34,0.000329,2]
[313726505,1707619846030,-151.0,0.00032907,30]
[313726506,1707619846039,-1311.0,0.0003298,120]
[313726507,1707619846049,-1000.0,0.00032999,2]
[313726508,1707619846058,-1000.0,0.00032999,2]
[313726509,1707619846068,-1000.0,0.00032999,2]
[313726510,1707619846078,-1000.0,0.00032999,2]
[313726511,1707619846087,-1000.0,0.00032999,2]
[313726512,1707619846097,-1000.0,0.00032999,2]
[313726513,1707619846106,-1000.0,0.00032999,2]
[313726514,1707619846115,-1000.0,0.00032999,2]
[313726515,1707619846125,-1000.0,0.00032999,2]
[313726516,1707619846135,-1040.5878726,0.00032999,2]
[313726517,1707619846144,-203.12387103,0.00033,2]
[313726518,1707619846154,-4000.0,0.00033,3]
[313726519,1707619846163,-20000.0,0.00033,3]
[313726520,1707619846174,-550.0,0.00033,3]
[313726521,1707619846183,-4000.0,0.00033,2]
[313726522,1707619846192,-150.0,0.00033021,2]
[313726523,1707619846202,-150.0,0.00033024,7]
[313726524,1707619846211,-303.701,0.00033024,7]
[313726525,1707619846221,-154.0,0.00033026,5]
[313726526,1707619846230,-5946.10896579,0.00033074,5]
[313726527,1707619846239,-920.7,0.000331,2]
[313726528,1707619846248,-346.0,0.000331,2]
[313726529,1707619846258,-435.0,0.000331,2]
[313726530,1707619846267,-434.0,0.000331,2]
[313726531,1707619846280,-262.30444294,0.00033154,2]
[313726532,1707619846289,-150.0,0.00033189,2]
[313726533,1707619846298,-234.0211,0.00033198,8]
[313726534,1707619846308,-943.07757526,0.00033202,2]
[313726535,1707619846317,-150.0,0.00033216,2]
[313726536,1707619846326,-150.0,0.00033231,2]
[313726537,1707619846336,-400.0,0.00033272,2]
[313726538,1707619846345,-150.0,0.00033279,2]
[313726539,1707619846354,-150.0,0.00033346,2]
[313726540,1707619846364,-150.0,0.00033364,2]
[313726541,1707619846374,-150.0,0.00033365,2]
[313726542,1707619846384,-150.0,0.00033375,2]
[313726543,1707619846393,-150.0,0.00033387,2]
[313726544,1707619846402,-150.0,0.00033407,2]
[313726545,1707619846412,-150.0,0.00033426,2]
[313726546,1707619846421,-658.18,0.00033461,2]
[313726547,1707619846431,-150.0,0.00033473,2]
[313726548,1707619846440,-150.0,0.00033474,2]
[313726549,1707619846450,-150.0,0.00033476,2]
[313726550,1707619846459,-150.0,0.00033487,2]
[313726551,1707619846468,-234.0211,0.00033498,8]
[313726552,1707619846477,-500.0,0.00033499,2]
[313726553,1707619846487,-511.92690059,0.00033499,2]
[313726554,1707619846496,-459.19,0.000335,2]
[313726555,1707619846505,-459.19,0.000335,2]
[313726556,1707619846514,-459.19,0.000335,2]
[313726557,1707619846524,-459.19,0.000335,2]
[313726558,1707619846533,-459.19,0.000335,2]
[313726559,1707619846546,-459.19,0.000335,2]
[313726560,1707619846556,-459.19,0.000335,2]
[313726561,1707619846566,-459.19,0.000335,2]
[313726562,1707619846575,-459.19,0.000335,2]
[313726563,1707619846585,-459.19,0.000335,2]
[313726564,1707619846594,-459.19,0.000335,2]
[313726565,1707619846604,-459.19,0.000335,2]
[313726566,1707619846613,-459.19,0.000335,2]
[313726567,1707619846623,-459.19,0.000335,2]
[313726568,1707619846632,-459.19,0.000335,2]
[313726569,1707619846642,-459.19,0.000335,2]
[313726570,1707619846651,-459.19,0.000335,2]
[313726571,1707619846661,-459.19,0.000335,2]
[313726572,1707619846671,-459.19,0.000335,2]
[313726573,1707619846680,-459.19,0.000335,2]
[313726574,1707619846690,-155.0,0.0003354,2]
[313726575,1707619846699,-151.0,0.00033578,7]
[313726576,1707619846709,-150.0,0.00033598,2]
[313726577,1707619846718,-150.0,0.00033604,2]
[313726578,1707619846728,-150.0,0.00033689,2]
[313726579,1707619846740,-150.0,0.00033719,2]
[313726580,1707619846749,-150.0,0.00033728,2]
[313726581,1707619846759,-150.0,0.00033745,2]
[313726582,1707619846768,-234.0211,0.00033798,6]
[313726583,1707619846779,-150.0,0.00033823,2]
[313726584,1707619846788,-150.0,0.00033827,2]
[313726585,1707619846798,-500.0,0.00033828,2]
[313726586,1707619846807,-150.0,0.00033833,2]
[313726587,1707619846817,-150.0,0.00033869,2]
[313726588,1707619846827,-150.0,0.00033874,2]
[313726589,1707619846837,-150.0,0.00033886,2]
[313726590,1707619846846,-150.0,0.00033889,2]
[313726591,1707619846856,-5946.10896579,0.00033892,6]
[313726592,1707619846865,-150.0,0.00033896,2]
[313726593,1707619846875,-1500.0,0.000339,12]
[313726594,1707619846885,-158.31571901,0.000339,2]
[313726595,1707619846895,-158.315719,0.000339,2]
[313726596,1707619846905,-150.0,0.00033901,2]
[313726597,1707619846916,-150.0,0.00033904,2]
[313726598,1707619846926,-150.0,0.0003393,2]
[313726599,1707619846936,-150.0,0.00033944,2]
[313726600,1707619846947,-1311.0,0.0003398,120]
[313726601,1707619846956,-150.0,0.00033982,2]
[313726602,1707619846965,-150.0,0.00033983,2]
[313726603,1707619846975,-150.0,0.00033989,2]
[313726604,1707619846984,-767.32331922,0.00034,4]
[313726605,1707619846994,-362.77335769,0.00034,36]
[313726606,1707619847003,-1000.0,0.00034,2]
[313726607,1707619847013,-150.0,0.00034002,2]
[313726608,1707619847022,-150.0,0.00034025,2]
[313726609,1707619847032,-211.46083914,0.00034046,2]
[313726610,1707619847041,-150.0,0.00034069,2]
[313726611,1707619847051,-150.0,0.00034081,2]
[313726612,1707619847060,-150.0,0.00034083,2]
[313726613,1707619847070,-150.0,0.00034099,2]
[313726614,1707619847079,-800.0,0.00034115,2]
[313726615,1707619847089,-500.0,0.00034115,2]
[313726616,1707619847098,-150.0,0.00034124,2]
[313726617,1707619847108,-150.0,0.00034139,2]
[313726618,1707619847117,-150.0,0.00034167,2]
[313726619,1707619847127,-150.0,0.00034174,2]
[313726620,1707619847137,-150.0,0.00034175,2]
[313726621,1707619847146,-150.0,0.00034181,2]
[313726622,1707619847156,-600.0,0.0003419,2]
[313726623,1707619847165,-234.0211,0.00034198,8]
[313726624,1707619847175,-150.0,0.00034212,2]
[313726625,1707619847184,-150.0,0.00034221,2]
[313726626,1707619847194,-150.0,0.00034231,2]
[313726627,1707619847204,-500.0,0.00034247,2]
[313726628,1707619847214,-200.0,0.00034247,2]
[313726629,1707619847224,-150.0,0.00034248,2]
[313726630,1707619847233,-200.0,0.00034251,3]
[313726631,1707619847243,-202.259037,0.00034251,5]
[313726632,1707619847252,-150.0,0.00034259,2]
[313726633,1707619847261,-150.0,0.00034263,2]
[313726634,1707619847270,-151.0,0.00034264,4]
[313726635,1707619847281,-150.0,0.00034266,2]
[313726636,1707619847290,-150.0,0.00034297,2]
[313726637,1707619847299,-150.0,0.00034314,2]
[313726638,1707619847309,-150.0,0.00034321,2]
[313726639,1707619847318,-500.0,0.00034379,2]
[313726640,1707619847327,-200.0,0.00034379,2]
[313726641,1707619847337,-150.0,0.00034386,2]
[313726642,1707619847347,-238.31158515,0.00034388,4]
[313726643,1707619847356,-1191.03732062,0.00034388,4]
[313726644,1707619847366,-150.0,0.00034389,2]
[313726645,1707619847375,-150.0,0.0003439,2]
[313726646,1707619847385,-150.0,0.00034391,2]
[313726647,1707619847395,-10000.0,0.000344,4]
[313726648,1707619847404,-208.0,0.00034429,11]
[313726649,1707619847414,-40.09386371,0.00034438,4]
[313726650,1707619852900,158.48642876,0.00022,2]
[313726651,1707619860380,248.85176922,0.00022,2]
[313726652,1707619864753,474.93583962,0.00022,2]
[313726653,1707619897724,287.90161797,0.00022,2]
[313726654,1707619899087,156.57784203,0.00022,2]
[313726655,1707619902291,245.23087109,0.00020698,2]
[313726656,1707619903207,298.0,0.00021,2]
[313726657,1707619903806,830.98735171,0.00022,2]
[313726658,1707619916491,1011.44108248,0.00020696,2]
[313726659,1707619938696,4594.2461711,0.00020593,2]
[313726660,1707620019166,880.0,0.00021882,2]
[313726661,1707620019693,359.57,0.00021882,2]
[313726662,1707620037096,250.0,0.00021632,2]
[313726663,1707620064351,177.2,0.00022,2]
[313726664,1707620083001,2159.88,0.00021646,2]
[313726665,1707620088983,592.59,0.00019728,2]
[313726666,1707620089180,592.59,0.00021992,2]
[313726667,1707620138990,1323.29,0.00021656,2]
[313726668,1707620139629,23900.0,0.00021656,2]
[313726669,1707620175931,171.64,0.00021673,2]
[313726670,1707620180017,157.41,0.00021854,2]
[313726671,1707620317679,2000.0,0.00021682,2]
[313726672,1707620326342,9984.83,0.00021682,2]
[313726673,1707620382228,250.0,0.00021918,2]
[313726674,1707620400580,500.0,0.00021692,2]
[313726675,1707620402228,200.0,0.00021692,2]
[313726676,1707620483950,296.0,0.00021711,2]
[313726677,1707620491452,343.69,0.00021711,2]
[313726678,1707620543388,14501.15,0.00021682,2]
[313726679,1707620555579,9137.98,0.00021671,2]
[313726680,1707620574790,23900.0,0.00021664,2]
[313726681,1707620594426,553.5,0.00019759,2]
[313726682,1707620600596,282.67788697,0.00022,2]
[313726683,1707620609240,10580.58550241,0.00022,2]
[313726684,1707620626634,1102.74,0.00021679,2]
[313726685,1707620638430,5213.40299874,0.00022,2]
[313726686,1707620698754,177.2,0.00022,2]
[313726687,1707620707212,276.50072359,0.00022,2]
[313726688,1707620711521,250.0,0.00021693,2]
[313726689,1707620714938,5213.40299874,0.00022,2]
[313726690,1707620742555,2828.84,0.00021693,2]
[313726691,1707620782349,2000.0,0.0002171,2]
[313726692,1707620797456,5213.40299874,0.00022,2]
[313726693,1707620831573,155.0,0.00022,2]
[313726698,1707620879961,5213.40299874,0.00022,2]
[313726699,1707620885199,158.3,0.00021972,2]
[313726700,1707620952471,5213.40299874,0.00022,2]
[313726701,1707620979691,187.97475223,0.00021923,2]
[313726702,1707620984677,187.97475221,0.00021974,2]
[313726709,1707621002385,763.2,0.00021773,2]
[313726710,1707621016611,323.18,0.00021751,2]
[313726711,1707621020986,5213.40299874,0.00022,2]
[313726721,1707621031693,-353.86340401,0.00022001,2]
[313726722,1707621031705,-4157.48753959,0.00022001,2]
[313726723,1707621031714,-553.5,0.00022023,2]
[313726724,1707621031725,-187.97475221,0.00022026,2]
[313726725,1707621031734,-526.54171103,0.00022026,2]
[313726726,1707621031743,-187.97475221,0.00022077,2]
[313726727,1707621031752,-158.3,0.00022115,2]
[313726728,1707621031761,-1378.6670059,0.00022128,2]
[313726729,1707621031771,-187.97475221,0.00022129,2]
[313726730,1707621031780,-159.66162966,0.0002213,2]
[313726731,1707621031790,-187.97475221,0.0002218,2]
[313726732,1707621031799,-182.85,0.00022229,2]
[313726733,1707621031808,-187.97475221,0.00022232,2]
[313726734,1707621031817,-158.3,0.00022259,2]
[313726735,1707621031827,-187.97475221,0.00022283,2]
[313726736,1707621031838,-300.0,0.000223,8]
[313726737,1707621031848,-150.99,0.000223,2]
[313726738,1707621031857,-168.4,0.00022332,2]
[313726739,1707621031867,-499.99,0.00022332,2]
[313726740,1707621031876,-187.97475221,0.00022334,2]
[313726741,1707621031886,-187.97475221,0.00022386,2]
[313726742,1707621031895,-150.0,0.00022399,2]
[313726743,1707621031904,-600.0,0.000224,8]
[313726744,1707621031913,-158.3,0.00022402,2]
[313726745,1707621031922,-187.97475221,0.00022437,2]
[313726746,1707621031931,-900.0,0.000225,8]
[313726747,1707621031940,-158.3,0.00022545,2]
[313726761,1707621032130,-177.2,0.00022548,2]
[313726762,1707621032203,-1200.0,0.000226,8]
[313726763,1707621032212,-158.3,0.00022688,2]
[313726764,1707621032222,-1500.0,0.000227,8]
[313726765,1707621032232,-286.84658779,0.00022766,2]
[313726766,1707621032241,-752.0,0.0002277,2]
[313726767,1707621032250,-329.06231855,0.00022799,2]
[313726768,1707621032262,-2048.24753747,0.00022799,2]
[313726769,1707621032274,-274.33836287,0.00022799,2]
[313726770,1707621032301,-2037.06038111,0.00022799,2]
[313726771,1707621032311,-300.0,0.000228,8]
[313726772,1707621032320,-158.3,0.00022831,2]
[313726773,1707621032330,-716.91,0.00022839,2]
[313726774,1707621032339,-16591.3597,0.00022886,2]
[313726775,1707621032349,-13540.70874815,0.00022898,2]
[313726776,1707621032358,-12642.2173,0.00022898,2]
[313726777,1707621032367,-426.0306,0.00022898,2]
[313726778,1707621032376,-5770.0674,0.00022899,2]
[313726779,1707621032385,-1253.75375815,0.00022899,2]
[313726780,1707621032394,-205.63709786,0.00022899,2]
[313726781,1707621032403,-1405.46797739,0.000229,2]
[313726782,1707621032429,-2232.62973941,0.000229,2]
[313726783,1707621032440,-679.70803117,0.000229,2]
[313726784,1707621032451,-1270.173871,0.000229,2]
[313726785,1707621032462,-336.65932276,0.000229,2]
[313726786,1707621032473,-6059.10730464,0.000229,2]
[313726787,1707621032483,-3647.26271338,0.000229,2]
[313726788,1707621032507,-281.63740935,0.000229,2]
[313726789,1707621032518,-266.1619309,0.000229,2]
[313726790,1707621032529,-1135.97301531,0.000229,2]
[313726791,1707621032538,-181.88127678,0.000229,2]
[313726792,1707621032547,-273.27675379,0.000229,2]
[313726793,1707621032556,-172.70999681,0.000229,2]
[313726794,1707621032565,-243.03826643,0.000229,2]
[313726795,1707621032574,-300.0,0.000229,8]
[313726796,1707621032583,-1253.75375812,0.00022901,2]
[313726797,1707621032592,-5331.0350689,0.00022901,2]
[313726798,1707621032601,-5331.0350689,0.00022903,2]
[313726799,1707621032610,-1253.75375812,0.00022903,2]
[313726800,1707621032620,-5331.0350689,0.00022904,2]
[313726801,1707621032629,-5331.0350689,0.00022905,2]
[313726802,1707621032638,-1253.75375812,0.00022905,2]
[313726803,1707621032647,-5331.0350689,0.00022906,2]
[313726804,1707621032657,-273.27675379,0.00022907,2]
[313726805,1707621032666,-1253.75375812,0.00022908,2]
[313726806,1707621032675,-5331.0350689,0.00022908,2]
[313726807,1707621032685,-5331.0350689,0.00022909,2]
[313726808,1707621032694,-1253.75375812,0.0002291,2]
[313726809,1707621032703,-5331.0350689,0.0002291,2]
[313726810,1707621032712,-5331.0350689,0.00022911,2]
[313726811,1707621032721,-1253.75375812,0.00022912,2]
[313726812,1707621032731,-5331.0350689,0.00022913,2]
[313726813,1707621032740,-5331.0350689,0.00022914,2]
[313726814,1707621032750,-273.27675379,0.00022914,2]
[313726815,1707621032759,-1253.75375812,0.00022914,2]
[313726816,1707621032768,-158.3,0.00022974,2]
[313726817,1707621032777,-359.57,0.00022976,2]
[313726818,1707621032787,-47914.0,0.00022986,2]
[313726819,1707621032796,-4656.9766055,0.00022988,2]
[313726820,1707621032805,-151.0211,0.00022995,3]
[313726821,1707621032815,-151.0211,0.00022995,3]
[313726822,1707621032824,-151.0211,0.00022995,3]
[313726823,1707621032833,-151.0211,0.00022995,3]
[313726824,1707621032843,-151.0211,0.00022995,3]
[313726825,1707621032852,-151.0211,0.00022995,3]
[313726826,1707621032861,-151.0211,0.00022995,3]
[313726827,1707621032871,-151.0211,0.00022995,3]
[313726828,1707621032881,-151.0211,0.00022995,3]
[313726829,1707621032890,-151.0211,0.00022995,3]
[313726830,1707621032899,-151.0211,0.00022995,3]
[313726831,1707621032909,-151.0211,0.00022995,3]
[313726832,1707621032918,-158.02824064,0.00022995,2]
[313726833,1707621032928,-379.19054217,0.00022995,2]
[313726834,1707621032937,-1313.76987318,0.00022996,2]
[313726835,1707621032946,-2239.61745874,0.00022997,2]
[313726836,1707621032955,-156.37657707,0.00022997,2]
[313726837,1707621032964,-708.19252327,0.00022997,2]
[313726838,1707621032973,-17310.69899885,0.00022997,2]
[313726839,1707621032982,-156.07656969,0.00022998,2]
[313726840,1707621032991,-3025.05163404,0.00022998,2]
[313726841,1707621033000,-4582.96970848,0.00022998,2]
[313726842,1707621033010,-155.0,0.00022998,2]
[313726843,1707621033019,-1273.70931503,0.00022998,2]
[313726844,1707621033028,-224.89895672,0.00022998,2]
[313726845,1707621033038,-156.25130745,0.00022998,2]
[313726846,1707621033047,-248.60640947,0.00022998,2]
[313726847,1707621033056,-221.22487839,0.00022998,2]
[313726848,1707621033065,-323.47398376,0.00022998,2]
[313726849,1707621033075,-196.48596075,0.00022998,2]
[313726850,1707621033088,-440.57659147,0.00022998,2]
[313726851,1707621033098,-213.58367461,0.00022998,2]
[313726852,1707621033107,-390.63254697,0.00022998,2]
[313726853,1707621033117,-15080.38163181,0.00022998,2]
[313726854,1707621033127,-2342.80470542,0.00022998,2]
[313726855,1707621033137,-1986.85421084,0.00022998,2]
[313726856,1707621033146,-155.78369491,0.00022998,2]
[313726857,1707621033155,-269015.34724511,0.00022998,2]
[313726858,1707621033178,-1687.11508907,0.00022998,2]
[313726859,1707621033210,-350.0,0.00022998,2]
[313726860,1707621033222,-402.851972,0.00022998,2]
[313726872,1707621037811,-187.97475221,0.00022489,2]
[313726873,1707621037822,-243.03826643,0.00022907,2]
[313726874,1707621037831,-1960.1143915,0.00022997,2]
[313726875,1707621037841,-190453.7208796,0.00022998,2]
[313726876,1707621037851,-928.99213644,0.00022999,2]
[313726877,1707621037861,-238.12972426,0.00022999,2]
[313726878,1707621037874,-225.7760367,0.00022999,2]
[313726879,1707621037885,-30596.7334705,0.00022999,2]
[313726880,1707621037898,-8628.11548024,0.00022999,2]
[313726881,1707621037969,-38809.55789323,0.00022999,2]
[313726882,1707621037983,-161297.8241966,0.00022999,2]
[313726883,1707621037993,-236.51792874,0.00022999,2]
[313726884,1707621038003,-500.0,0.00022999,2]
[313726885,1707621038012,-178.70456415,0.00022999,2]
[313726886,1707621038022,-229.59846103,0.00022999,2]
[313726887,1707621038033,-312.68505472,0.00022999,2]
[313726888,1707621038043,-150.0,0.00022999,2]
[313726889,1707621038053,-150.0,0.00022999,2]
[313726890,1707621038064,-150.0,0.00022999,2]
[313726891,1707621038074,-150.0,0.00022999,2]
[313726892,1707621038085,-150.0,0.00022999,2]
[313726893,1707621038098,-150.0,0.00022999,2]
[313726894,1707621038108,-150.0,0.00022999,2]
[313726895,1707621038118,-150.0,0.00022999,2]
[313726896,1707621038128,-150.0,0.00022999,2]
[313726897,1707621038140,-150.0,0.00022999,2]
[313726898,1707621038150,-150.0,0.00022999,2]
[313726899,1707621038160,-150.0,0.00022999,2]
[313726900,1707621038171,-150.0,0.00022999,2]
[313726901,1707621038181,-150.0,0.00022999,2]
[313726902,1707621038191,-451168.50328292,0.00023,2]
[313726905,1707621038201,-230.73415915,0.00023,3]
[313726907,1707621038211,-7534805.44184535,0.00023,2]
[313726909,1707621038221,-2607.54162794,0.00023,2]
[313726911,1707621038230,-1233880.19237891,0.00023,2]
[313726913,1707621038253,-59606.72656755,0.00023,2]
[313726914,1707621038268,-574.04876307,0.00023,2]
[313726924,1707621040312,-187.97475221,0.0002254,2]
[313726925,1707621040322,-249.97624368,0.00023,2]
[313726926,1707621040909,-243.03826643,0.00022914,2]
[313726927,1707621040919,-1344.617999,0.00023,2]
[313726928,1707621040964,-1546.22160885,0.00023,2]
[313726929,1707621041076,-3074.76963318,0.00023,2]
[313726930,1707621041143,-582.71092656,0.00023,2]
[313726931,1707621041155,-11167.90893318,0.00023,2]
[313726932,1707621041167,-704.55500042,0.00023,2]
[313726933,1707621041180,-1861.20644442,0.00023,2]
[313726934,1707621041191,-17359.03573202,0.00023,2]
[313726943,1707621042683,-1341.32201624,0.00023,2]
[313726944,1707621042733,-2303.26449696,0.00023,2]
[313726945,1707621042745,-6069.02358372,0.00023,2]
[313726946,1707621042758,-298.29554015,0.00023,2]
[313726947,1707621042799,-62.93367304,0.00022989,2]
[313726948,1707621042814,-2145.27600764,0.00022989,2]
[313726949,1707621042949,-851.75214566,0.00022989,2]
[313726961,1707621045687,-187.97475221,0.00022591,2]
[313726962,1707621045697,-46651.57272804,0.00022989,2]
[313726963,1707621045708,-6162.7274754,0.00022989,2]
[313726964,1707621045720,-58782.17331098,0.00022989,2]
[313726965,1707621045732,-90814.53625,0.00022989,2]
[313726966,1707621045748,-39704.42430738,0.00022989,2]
[313726967,1707621045772,-739504.33554138,0.00022989,2]
[313726968,1707621045785,-328.29726274,0.00022989,2]
[313726969,1707621045796,-966.16924044,0.00022989,2]
[313726970,1707621045808,-2938.30643068,0.00022989,2]
[313726971,1707621045837,-444.1546217,0.00022989,2]
[313726972,1707621045849,-388.37127809,0.00022989,2]
[313726973,1707621045861,-2941.07559347,0.00022989,2]
[313726974,1707621045969,-8801.16273855,0.00022989,2]
[313726975,1707621046028,-873.88559492,0.00022989,2]
[313726976,1707621523805,536.09,0.00020806,2]
[313726977,1707621997949,551.67,0.00020085,2]
[313726978,1707622035546,545.50689601,0.00022,2]
[313726988,1707622057769,-3028.58,0.00022051,2]
[313726989,1707622081599,1148.99,0.00022003,2]
[313726990,1707622150476,1000.0,0.00022093,2]
[313726991,1707622156952,150.25,0.00022093,2]
[313727015,1707622234268,-421.48705292,0.00022115,2]
[313727018,1707622234279,-535.51,0.00022116,2]
[313727019,1707622234290,-419.02,0.00022186,2]
[313727020,1707622234300,-216.2,0.00022186,2]
[313727021,1707622234310,-250.0,0.00022186,2]
[313727022,1707622234320,-551.67,0.00022349,2]
[313727023,1707622234330,-215.74,0.00022366,2]
[313727024,1707622234340,-158.77,0.00022486,2]
[313727025,1707622234349,-235.21847458,0.000225,2]
[313727026,1707622234359,-160.74832252,0.00022606,2]
[313727027,1707622234369,-150.0,0.00022607,2]
[313727028,1707622234379,-1639.66,0.00022608,2]
[313727029,1707622234388,-327.70973757,0.00022608,2]
[313727030,1707622234406,-1517.05026243,0.00022608,2]
[313727031,1707622234416,-150.0,0.00022704,2]
[313727032,1707622234426,-596.53470216,0.0002277,2]
[313727033,1707622234436,-244.22699877,0.00022774,2]
[313727034,1707622234462,-477.44300123,0.00022774,2]
[313727035,1707622234475,-493.60383214,0.00022895,2]
[313727036,1707622234485,-570.40458374,0.00022896,2]
[313727037,1707622234498,-1298.8582563,0.00022896,2]
[313727038,1707622234507,-13922.0957,0.00022897,2]
[313727039,1707622234518,-1191.555,0.00022897,2]
[313727040,1707622234527,-1003.3109,0.00022897,2]
[313727041,1707622234538,-151.04316124,0.00022898,2]
[313727042,1707622234549,-247.76645732,0.00022988,2]
[313727043,1707622234560,-364.72801437,0.00022995,2]
[313727044,1707622234569,-130015.56271566,0.00022995,2]
[313727045,1707622234579,-1945.94655015,0.00022996,5]
[313727046,1707622234589,-7656.336,0.00022997,2]
[313727047,1707622234599,-373942.79111558,0.00022998,2]
[313727048,1707622234621,-296.67951861,0.00022998,2]
[313727069,1707622237862,-1006.99358165,0.00022998,2]
[313727070,1707622237919,-10126.00819466,0.00022998,2]
[313727071,1707622238197,-2354.86080423,0.00022998,2]
[313727072,1707622238210,-342.89267439,0.00022998,2]
[313727237,1707622240439,-3656.44512142,0.00022998,2]
[313727238,1707622240452,-1153.55487858,0.00022998,2]
[313727239,1707622241091,-4131.32130172,0.00022998,2]
[313727240,1707622241209,-275.29512658,0.00022998,2]
[313727241,1707622241221,-836.9735651,0.00022998,2]
[313727242,1707622241314,-345.63235448,0.00022998,2]
[313727253,1707622242969,-10044.74759999,0.00022998,2]
[313727254,1707622242981,-429.0771734,0.00022998,2]
[313727255,1707622242992,-1799.91096153,0.00022998,2]
[313727256,1707622243004,-1031.6435404,0.00022998,2]
[313727257,1707622243016,-20042.9742,0.00022998,2]
[313727258,1707622243043,-264.48078886,0.00022998,2]
[313727259,1707622243086,-1011.0846276,0.00022998,2]
[313727260,1707622243242,-259.4268187,0.00022998,2]
[313727292,1707622246105,-421.48705292,0.00022997,2]
[313727293,1707622246115,-6372.41678305,0.00022998,2]
[313727294,1707622246128,-429.38047636,0.00022998,2]
[313727295,1707622246140,-638.78,0.00022998,2]
[313727296,1707622246165,-512.6399146,0.00022998,2]
[313727297,1707622246177,-5128.8636134,0.00022998,2]
[313727298,1707622246187,-2015.62466917,0.00023,2]
[313727299,1707622246196,-2607.54162794,0.00023,2]
[313727300,1707622246206,-2000.0,0.00023,2]
[313727301,1707622246215,-200.0,0.00023,2]
[313727302,1707622246225,-500.0,0.00023014,2]
[313727303,1707622246234,-158.77,0.00023072,2]
[313727304,1707622246248,-2000.0,0.0002323,2]
[313727305,1707622246258,-200.0,0.0002323,2]
[313727306,1707622246268,-225.99,0.00023459,2]
[313727307,1707622246277,-161.72065473,0.00023462,2]
[313727308,1707622246304,-1838.27934527,0.00023462,2]